Organisation Name,Organisation Code,Directorate/Service,Service Category Label,Service Code,Supplier Name,Supplier Reference,Payment Date,Transaction Number,Net payment,Purpose of Spend,
North West Leicestershire District Council,31UH,Communications,Corporate - Customer Services,CS,Freedom Communications (UK) Ltd,A032826,05/07/2017,1346277,3995,Computing,
North West Leicestershire District Council,31UH,Information Technology,ICT Services,ICT,Premier Paper Group,A042438,12/07/2017,1346659,478.71,Consumable Materials,
North West Leicestershire District Council,31UH,Environmental Health,Environmental Health & Licensing,EEHL,Eville And Jones Limited,A033670,26/07/2017,1346717,584.44,Vet Inspection,
North West Leicestershire District Council,31UH,Housing,HRA Performance & Business Support,HRAPBS,Royal Mail Group,A036466,12/07/2017,1347091,1075.89,Postages,
North West Leicestershire District Council,31UH,Housing,HRA Performance & Business Support,HRAPBS,Hinckley & Bosworth Borough Council,A000770,12/07/2017,1347095,1269,Agency Staff,
North West Leicestershire District Council,31UH,Street Management,Environment Transport,ENOT,Dennis Eagle Limited,A000522,19/07/2017,1347119,705,Repairs - Parts,
North West Leicestershire District Council,31UH,Planning & Development,Environment Community Planning,ECP,Solon Security,A035272,06/09/2017,1347170,500.58,Security Equipment,
North West Leicestershire District Council,31UH,Housing Strategy,Community - Housing Strategy,HS,Total Merchandise Limited,A035515,05/07/2017,1347344,462,Grants,
North West Leicestershire District Council,31UH,Street Management,Environment Waste Management,ENOWM,Leicestershire County Council,A027423,12/07/2017,1347471,9350,Hire Of Operational Equipment,
North West Leicestershire District Council,31UH,Leisure Centres,Hermitage Leisure Centre,HLC,Coalville Signs,A000370,05/07/2017,1347505,445,Publicity & Promotion,
North West Leicestershire District Council,31UH,Street Management,Environment Parks,ENOP,Public Sector Software Ltd,A029902,12/07/2017,1347511,9000,Computer Software Maintenance,
North West Leicestershire District Council,31UH,Street Management,Environment Parks,ENOP,Public Sector Software Ltd,A029902,12/07/2017,1347537,500,Training Expenses,
North West Leicestershire District Council,31UH,Information Technology,ICT Services,ICT,Centreprise International Ltd,A043431,05/07/2017,1347582,575,Contract Payments (Dws) Ext,
North West Leicestershire District Council,31UH,Leisure Centres,Hood Park Leisure Centre,HPLC,Zoggs International Ltd,A001833,12/07/2017,1347596,807.03,Leisure Centre Equipment,
North West Leicestershire District Council,31UH,Housing,HRA Performance & Business Support,HRAPBS,The Housing Ombudsman,A041384,12/07/2017,1347598,5518.75,Subscriptions,
North West Leicestershire District Council,31UH,Housing,HRA Performance & Business Support,HRAPBS,Michael Page International Recruitment Ltd,A041893,05/07/2017,1347599,2017.75,Agency Staff,
North West Leicestershire District Council,31UH,Housing,HRA Performance & Business Support,HRAPBS,Badenoch & Clark,A030251,05/07/2017,1347612,1013.07,Agency Staff,
North West Leicestershire District Council,31UH,Housing,HRA Housing Management,HRAHM,Coalville Signs,A000370,19/07/2017,1347623,319,General Repairs,
North West Leicestershire District Council,31UH,Street Management,Environment Parks,ENOP,BPI Recycled Products,A017624,05/07/2017,1347649,610.4,Operational Equipment,
North West Leicestershire District Council,31UH,Finance,Financial Planning,FINPLA,CIPFA Business Limited,A036780,12/07/2017,1347814,670,Books & Publications,
North West Leicestershire District Council,31UH,Leisure Centres,Hermitage Leisure Centre,HLC,Greasley Electronics Ltd,A040963,05/07/2017,1347815,320,Operational Equipment,
North West Leicestershire District Council,31UH,Leisure Centres,Hermitage Leisure Centre,HLC,Open Box Promotions,A039721,05/07/2017,1347878,380,Publicity & Promotion,
North West Leicestershire District Council,31UH,Leisure Centres,Hermitage Leisure Centre,HLC,Wyndeham Gait Limited,A037245,05/07/2017,1347879,1230,Publicity & Promotion,
North West Leicestershire District Council,31UH,Leisure Centres,Hermitage Leisure Centre,HLC,T Denman & Sons (Melton Mowbray) Ltd,A030887,05/07/2017,1347880,279.94,General Repairs,
North West Leicestershire District Council,31UH,Leisure Centres,Hermitage Leisure Centre,HLC,Security Alert UK,A037299,05/07/2017,1347882,675,Security services,
North West Leicestershire District Council,31UH,Leisure & Culture,Cultural Services Arts & Events,CULTEV,UKLoos.com,A036990,05/07/2017,1347889,931,Portable Toilet Hire,
North West Leicestershire District Council,31UH,Leisure & Culture,Sport & Physical Activity,SPA,Later Life Training Ltd,A042254,05/07/2017,1347894,3950,Training Course,
North West Leicestershire District Council,31UH,Planning & Development,Environment - Development Control,EDC,Euro RSCG People T/A Havas People Ltd,A001395,05/07/2017,1347895,901.32,Advertising,
North West Leicestershire District Council,31UH,Planning & Development,Environment - Development Control,EDC,Euro RSCG People T/A Havas People Ltd,A001395,05/07/2017,1347896,990.48,Advertising,
North West Leicestershire District Council,31UH,Finance,Exchequer Services,EXCH,Comensura Limited,A036958,05/07/2017,1347900,28217.05,Agency Staff,
North West Leicestershire District Council,31UH,Property Services,Property Facilities Management,PROPFM,TECSERV UK LIMITED,A028261,05/07/2017,1347903,767.52,General Repairs,
North West Leicestershire District Council,31UH,Leisure Centres,Hood Park Leisure Centre,HPLC,ESPO,A000958,05/07/2017,1347906,324,Operational Equipment,
North West Leicestershire District Council,31UH,Corporate Director,Human Resources,HR,Spectra Security Limited,A002190,05/07/2017,1347918,340,Door Entry Systems,
North West Leicestershire District Council,31UH,Street Management,Environment Transport,ENOT,Bandvulc Tyres Ltd,A033268,05/07/2017,1347921,3160,Transport Costs - Tyres,
North West Leicestershire District Council,31UH,Leisure Centres,Hermitage Bar & Catering,HLBC,Snackline Direct Ltd,A042489,05/07/2017,1347930,628.15,Catering Provisions,
North West Leicestershire District Council,31UH,Leisure Centres,Hermitage Bar & Catering,HLBC,Snackline Direct Ltd,A042489,05/07/2017,1347931,677.17,Catering Provisions,
North West Leicestershire District Council,31UH,Leisure Centres,Hermitage Bar & Catering,HLBC,Snackline Direct Ltd,A042489,05/07/2017,1347932,545.18,Bar Provisions,
North West Leicestershire District Council,31UH,Street Management,Environment - Street Scene,ESS,Wigston Car Breakers,A043467,05/07/2017,1347934,360,Removal of Abandoned Vehicles,
North West Leicestershire District Council,31UH,Property Services,Property Facilities Management,PROPFM,John Merison BMC Ltd,A001092,05/07/2017,1347943,1224.02,General Repairs,
North West Leicestershire District Council,31UH,Environmental Health,Environmental Services,EES,Sita UK Ltd,A001108,05/07/2017,1347962,331.27,Tipping Charges,
North West Leicestershire District Council,31UH,Leisure Centres,Hood Park Leisure Centre,HPLC,Forge Leisure Ltd,A025014,05/07/2017,1347965,4609,Leisure Centre Equipment,
North West Leicestershire District Council,31UH,Leisure Centres,Hood Park Leisure Centre,HPLC,Forge Leisure Ltd,A025014,05/07/2017,1347966,440,Service Contracts,
North West Leicestershire District Council,31UH,Leisure Centres,Hermitage Leisure Centre,HLC,Admiral Cleaning Supplies Ltd,A040930,05/07/2017,1347967,759.86,Consumable Cleaning Materials/Hygiene,
North West Leicestershire District Council,31UH,Leisure Centres,Hood Park Leisure Centre,HPLC,T Denman & Sons (Melton Mowbray) Ltd,A030887,05/07/2017,1347969,2058.08,General Repairs,
North West Leicestershire District Council,31UH,Leisure Centres,Hermitage Leisure Centre,HLC,ADT Fire And Security,A000021,05/07/2017,1347972,779,General Repairs,
North West Leicestershire District Council,31UH,Leisure Centres,Hermitage Leisure Centre,HLC,Horton Automatics Limited,A027779,05/07/2017,1347974,609.46,General Repairs,
North West Leicestershire District Council,31UH,Leisure Centres,Hermitage Leisure Centre,HLC,J P Lennard Ltd,A000969,05/07/2017,1347975,1494.67,Operational Equipment,
North West Leicestershire District Council,31UH,Planning & Development,Building Control,EBC,Leicestershire County Council,A027423,12/07/2017,1347977,2268,Search Fees - L.C.C.,
North West Leicestershire District Council,31UH,Finance,Exchequer Services,EXCH,Insight Uk,A021505,05/07/2017,1347978,4765.37,Computing,
North West Leicestershire District Council,31UH,Finance,Exchequer Services,EXCH,Insight Uk,A021505,05/07/2017,1347979,884,Computing,
North West Leicestershire District Council,31UH,Street Management,Environment Waste Management,ENOWM,Leicestershire County Council,A027423,12/07/2017,1347982,-7650,Hire Of Operational Equipment,
North West Leicestershire District Council,31UH,Leisure Centres,Hood Park Leisure Centre,HPLC,Craftsman Quality Lockers Ltd,A039532,05/07/2017,1347983,255,Leisure Centre Equipment,
North West Leicestershire District Council,31UH,Property Services,Property Commercial Lettings,PROPCL,Coalville Cleaning Services,A003037,05/07/2017,1347984,558.06,Contract Cleaning,
North West Leicestershire District Council,31UH,Property Services,Property Commercial Lettings,PROPCL,Coalville Cleaning Services,A003037,05/07/2017,1347985,289.95,Contract Cleaning,
North West Leicestershire District Council,31UH,Street Management,Environment Parks,ENOP,New Build Landscaping & Home,A043278,12/07/2017,1347987,525,External Contractor Payments,
North West Leicestershire District Council,31UH,Street Management,Environment Parks,ENOP,New Build Landscaping & Home,A043278,12/07/2017,1347988,350,External Contractor Payments,
North West Leicestershire District Council,31UH,Property Services,Property Facilities Management,PROPFM,John Merison BMC Ltd,A001092,05/07/2017,1347990,2255,Asset Protection,
North West Leicestershire District Council,31UH,Property Services,Property Facilities Management,PROPFM,Geze Uk Limited,A023130,05/07/2017,1347996,267.92,General Repairs,
North West Leicestershire District Council,31UH,Street Management,Environment - Street Scene,ESS,Euro RSCG People T/A Havas People Ltd,A001395,05/07/2017,1348002,422.48,Contract Payments (Other) Ext,
North West Leicestershire District Council,31UH,Housing,HRA Housing Management,HRAHM,NMS Removals Ltd,A044146,05/07/2017,1348003,370,Removal Services,
North West Leicestershire District Council,31UH,Housing,HRA Housing Management,HRAHM,E.on,A000528,05/07/2017,1348007,358.55,Electricity,
North West Leicestershire District Council,31UH,Street Management,Environment - Street Scene,ESS,Bruel & Kjaer Uk Limited,A000253,05/07/2017,1348012,8070,Operational Equipment,
North West Leicestershire District Council,31UH,Leisure & Culture,Cultural Services TIC,CULTIC,Leicester Shire Promotions Ltd,A028765,05/07/2017,1348014,9600,Tourism and Promotions,
North West Leicestershire District Council,31UH,Housing,HRA Housing Management,HRAHM,Redacted-personal data,A044075,05/07/2017,1348015,1000,Under Occupancy Incentives,
North West Leicestershire District Council,31UH,Street Management,Environment Parks,ENOP,First Central Developments Limited,A037180,05/07/2017,1348017,500,Operational Equipment,
North West Leicestershire District Council,31UH,Information Technology,ICT Services,ICT,Centreprise International Ltd,A043431,05/07/2017,1348018,-480,Contract Payments (Dws) Ext,
North West Leicestershire District Council,31UH,Information Technology,ICT Services,ICT,ACS Systems (UK) Ltd T/a ACS Office Solutions,A043447,05/07/2017,1348019,902,Administrative Equipment,
North West Leicestershire District Council,31UH,Street Management,Environment Waste Management,ENOWM,Leicestershire County Council,A027423,12/07/2017,1348020,-7650,Hire Of Operational Equipment,
North West Leicestershire District Council,31UH,Street Management,Environment Waste Management,ENOWM,Campbells Safety Wear,A043362,05/07/2017,1348022,445.35,Protective Clothing,
North West Leicestershire District Council,31UH,Information Technology,ICT Services,ICT,Cuttlefish Multimedia Ltd,A032102,05/07/2017,1348023,1718.33,Website Maintenance,
North West Leicestershire District Council,31UH,Housing Repairs,HRA Housing Repairs & Maintenance,HRAHRM,ESPO,A000958,19/07/2017,1348035,275,Operational Equipment,
North West Leicestershire District Council,31UH,Leisure Centres,Hood Park Leisure Centre,HPLC,Stowlin Ltd,A001591,05/07/2017,1348052,277.5,Water Treatment - Outdoor Pool,
North West Leicestershire District Council,31UH,Leisure Centres,Hermitage Bar & Catering,HLBC,Snackline Direct Ltd,A042489,05/07/2017,1348053,413.37,Vending Machine Provisions,
North West Leicestershire District Council,31UH,Property Services,Property Facilities Management,PROPFM,Gleam Team Services Limited,A000129,05/07/2017,1348056,350,Window Cleaning,
North West Leicestershire District Council,31UH,Leisure & Culture,Cultural Services Arts & Events,CULTEV,Coalville Times Ltd,A000374,05/07/2017,1348058,260,Advertising,
North West Leicestershire District Council,31UH,Housing Repairs,HRA Housing Repairs & Maintenance,HRAHRM,County Safety Services Ltd  t/a CSS Worksafe,A044007,05/07/2017,1348059,2985,Training Expenses,
North West Leicestershire District Council,31UH,Housing Repairs,HRA Housing Repairs & Maintenance,HRAHRM,Geze Uk Limited,A023130,05/07/2017,1348060,285,Lift Repairs,
North West Leicestershire District Council,31UH,Housing Repairs,HRA Housing Repairs & Maintenance,HRAHRM,Orbis Property Protection Ltd,A028149,05/07/2017,1348064,345,Void Property Clearance Services,
North West Leicestershire District Council,31UH,Housing Repairs,HRA Housing Repairs & Maintenance,HRAHRM,Orbis Property Protection Ltd,A028149,05/07/2017,1348067,490,Void Property Clearance Services,
North West Leicestershire District Council,31UH,Corporate Director,Human Resources,HR,Thomas International Uk Ltd,A001656,05/07/2017,1348073,5425,Personality Profiles,
North West Leicestershire District Council,31UH,Housing Strategy,Community - Housing Strategy,HS,Civica Ltd,A021357,05/07/2017,1348074,8058.49,Computing,
North West Leicestershire District Council,31UH,Street Management,Environment - Street Scene,ESS,Kings Armoured Security Services Ltd,A004468,05/07/2017,1348080,1183.93,Cash in Transit Services,
North West Leicestershire District Council,31UH,Housing,HRA Housing Management,HRAHM,Redacted-personal data,A044089,05/07/2017,1348082,1000,Under Occupancy Incentives,
North West Leicestershire District Council,31UH,Finance,Financial Planning,FINPLA,CIPFA,A027467,26/07/2017,1348089,295,Training Expenses,
North West Leicestershire District Council,31UH,Housing,HRA Housing Management,HRAHM,Redacted-personal data,A044147,05/07/2017,1348093,250,Under Occupancy Incentives,
North West Leicestershire District Council,31UH,Housing,HRA Housing Management,HRAHM,Redacted-personal data,A044156,05/07/2017,1348094,250,Under Occupancy Incentives,
North West Leicestershire District Council,31UH,Housing Repairs,HRA Housing Repairs & Maintenance,HRAHRM,BSP Consulting,A043552,05/07/2017,1348108,1860,Legal & Professional Services,
North West Leicestershire District Council,31UH,Housing Repairs,HRA Housing Repairs & Maintenance,HRAHRM,BSP Consulting,A043552,05/07/2017,1348109,3810,Legal & Professional Services,
North West Leicestershire District Council,31UH,Housing Repairs,HRA Housing Repairs & Maintenance,HRAHRM,RammSanderson Ecology Ltd,A043142,05/07/2017,1348110,330,Legal & Professional Services,
North West Leicestershire District Council,31UH,Street Management,Environment - Street Scene,ESS,Metric Group Ltd (Sales),A028996,05/07/2017,1348111,252,Subscriptions,
North West Leicestershire District Council,31UH,Information Technology,ICT Services,ICT,Orange Plc,A018592,05/07/2017,1348119,1048.44,Mobile Telephones,
North West Leicestershire District Council,31UH,Information Technology,ICT Services,ICT,Orange Plc,A018592,05/07/2017,1348120,2468.78,Mobile Telephones,
North West Leicestershire District Council,31UH,Street Management,Environment Transport,ENOT,Malvern Tyres,A035175,05/07/2017,1348185,295.6,Vehicle repairs/parts,
North West Leicestershire District Council,31UH,Street Management,Environment Transport,ENOT,Malvern Tyres,A035175,05/07/2017,1348186,615,Transport Costs - Tyres,
North West Leicestershire District Council,31UH,Property Services,Property Commercial Lettings,PROPCL,Urban Planters Leicestershire (limited),A003371,05/07/2017,1348194,552.5,Internal Decorations,
North West Leicestershire District Council,31UH,Housing Repairs,HRA Housing Repairs & Maintenance,HRAHRM,H20 Utilities Ltd,A043865,05/07/2017,1348196,1100,Associated Drainage Services,
North West Leicestershire District Council,31UH,Housing Repairs,HRA Housing Repairs & Maintenance,HRAHRM,Orbis Property Protection Ltd,A028149,05/07/2017,1348197,325,Void Property Clearance Services,
North West Leicestershire District Council,31UH,Housing Repairs,HRA Housing Repairs & Maintenance,HRAHRM,Orbis Property Protection Ltd,A028149,05/07/2017,1348198,325,Void Property Clearance Services,
North West Leicestershire District Council,31UH,Housing Repairs,HRA Housing Repairs & Maintenance,HRAHRM,Orbis Property Protection Ltd,A028149,05/07/2017,1348199,330,Void Property Clearance Services,
North West Leicestershire District Council,31UH,Housing Repairs,HRA Housing Repairs & Maintenance,HRAHRM,Orbis Property Protection Ltd,A028149,05/07/2017,1348201,350,Void Property Clearance Services,
North West Leicestershire District Council,31UH,Housing Repairs,HRA Housing Repairs & Maintenance,HRAHRM,TECSERV UK LIMITED,A028261,05/07/2017,1348205,264.46,Door Entry Systems,
North West Leicestershire District Council,31UH,Housing Repairs,HRA Housing Repairs & Maintenance,HRAHRM,TECSERV UK LIMITED,A028261,05/07/2017,1348206,1150,Door Entry Systems,
North West Leicestershire District Council,31UH,Housing Repairs,HRA Housing Repairs & Maintenance,HRAHRM,Aspect Contracts Limited,A041868,05/07/2017,1348210,900,Contract Payments (Dws) Ext,
North West Leicestershire District Council,31UH,Housing Repairs,HRA Housing Repairs & Maintenance,HRAHRM,Aspect Contracts Limited,A041868,05/07/2017,1348211,378.43,Contract Payments (Dws) Ext,
North West Leicestershire District Council,31UH,Street Management,Environment Parks,ENOP,Tudor UK Ltd  (trading as Tudor Environmental),A043777,05/07/2017,1348217,1372.25,General Repairs,
North West Leicestershire District Council,31UH,Street Management,Environment - Street Scene,ESS,The Royal Hotel,A001421,05/07/2017,1348219,7402.11,Private Owners,
North West Leicestershire District Council,31UH,Housing Repairs,HRA Housing Repairs & Maintenance,HRAHRM,DTE Demolition,A044031,05/07/2017,1348220,6300,Demolition Work,
North West Leicestershire District Council,31UH,Housing Repairs,HRA Housing Repairs & Maintenance,HRAHRM,Premier  Energy,A043143,05/07/2017,1348221,350,Legal & Professional Services,
North West Leicestershire District Council,31UH,Housing Repairs,HRA Housing Repairs & Maintenance,HRAHRM,Premier  Energy,A043143,05/07/2017,1348222,350,Legal & Professional Services,
North West Leicestershire District Council,31UH,Housing Repairs,HRA Housing Repairs & Maintenance,HRAHRM,Premier  Energy,A043143,05/07/2017,1348223,350,Legal & Professional Services,
North West Leicestershire District Council,31UH,Housing Repairs,HRA Housing Repairs & Maintenance,HRAHRM,BSP Consulting,A043552,05/07/2017,1348224,2689.15,Legal & Professional Services,
North West Leicestershire District Council,31UH,Leisure & Culture,Cultural Services Arts & Events,CULTEV,Mantle Community Arts Limited,A001039,05/07/2017,1348227,3500,Grants,
North West Leicestershire District Council,31UH,Housing Repairs,HRA Housing Repairs & Maintenance,HRAHRM,Kier Services Maintenance East Ltd,A039980,05/07/2017,1348230,51191.9,Decent Homes,
North West Leicestershire District Council,31UH,Leisure & Culture,Cultural Services TIC,CULTIC,Greycat Company,A044160,05/07/2017,1348231,655.2,Theatre Tickets,
North West Leicestershire District Council,31UH,Housing Repairs,HRA Housing Repairs & Maintenance,HRAHRM,Lovell Partnerships Ltd,A039973,05/07/2017,1348232,130333.8,Decent Homes,
North West Leicestershire District Council,31UH,Information Technology,ICT Services,ICT,Freedom Communications (UK) Ltd,A032826,12/07/2017,1348237,1500,Contract Payments (Other) Ext,
North West Leicestershire District Council,31UH,Housing Repairs,HRA Housing Repairs & Maintenance,HRAHRM,Sure Maintenance Ltd,A040460,12/07/2017,1348238,18614.63,Plumbing & Heating,
North West Leicestershire District Council,31UH,Legal & Democratic,Legal Services,LDLS,Oadby & Wigston Borough Council,A029514,12/07/2017,1348240,1500,Legal & Professional Services,
North West Leicestershire District Council,31UH,Leisure & Culture,Cultural Services Arts & Events,CULTEV,Regarde Security Ltd,A013049,26/07/2017,1348243,864.3,Building Security,
North West Leicestershire District Council,31UH,Legal & Democratic,Legal Services,LDLS,Bevan Brittan,A031366,12/07/2017,1348245,10178,Legal & Professional Services,
North West Leicestershire District Council,31UH,Property Services,Property Facilities Management,PROPFM,Fire Proof Ltd,A039911,12/07/2017,1348247,465,Fire Precaution Appliances,
North West Leicestershire District Council,31UH,Property Services,Property Facilities Management,PROPFM,Regarde Security Ltd,A013049,12/07/2017,1348254,492,Building Security,
North West Leicestershire District Council,31UH,Street Management,Environment Transport,ENOT,Euro Municipal Ltd,A043137,12/07/2017,1348261,950,Hire Of Transport,
North West Leicestershire District Council,31UH,Leisure Centres,Hood Park Leisure Centre,HPLC,Zoggs International Ltd,A001833,12/07/2017,1348265,1114.35,Leisure Centre Equipment,
North West Leicestershire District Council,31UH,Communications,Corporate - Customer Services,CS,Tunstall Healthcare (UK) Limited,A001701,12/07/2017,1348266,8831,Alarm System Telephones,
North West Leicestershire District Council,31UH,Housing,HRA Housing Management,HRAHM,JLA Limited,A043639,12/07/2017,1348267,292,Cleaning & Domestic Equipment,
North West Leicestershire District Council,31UH,Housing Repairs,HRA Housing Repairs & Maintenance,HRAHRM,Sure Maintenance Ltd,A040460,12/07/2017,1348268,1705,Plumbing & Heating,
North West Leicestershire District Council,31UH,Housing,HRA Performance & Business Support,HRAPBS,Taylor Bloxham Ltd,A037241,12/07/2017,1348269,847,Annual Report To Tenants,
North West Leicestershire District Council,31UH,Economic Development,Business Focus Group,BFG,Deana Wildgoose,A042162,12/07/2017,1348273,1850,Consultants Fees,
North West Leicestershire District Council,31UH,Legal & Democratic,Legal Services,LDLS,GL Hearn,A041191,12/07/2017,1348275,2487,External Legal Fees & Advice,
North West Leicestershire District Council,31UH,Information Technology,ICT Services,ICT,Cable & Wireless Worldwide,A038473,12/07/2017,1348276,3174.31,Admin Equipment - Maintenance,
North West Leicestershire District Council,31UH,Housing,HRA Housing Management,HRAHM,Water Plus Limited,A044043,12/07/2017,1348279,2528.27,Water Charges (Metered),
North West Leicestershire District Council,31UH,Housing Repairs,HRA Housing Repairs & Maintenance,HRAHRM,British Gas Trading Limited,A026237,12/07/2017,1348280,6440.15,Utlilities-connection services,
North West Leicestershire District Council,31UH,Property Services,Property Commercial Lettings,PROPCL,ACE Environmental Engineering Ltd,A040690,19/07/2017,1348281,423.34,General Repairs,
North West Leicestershire District Council,31UH,Housing,HRA Housing Management,HRAHM,Experian Ltd,A009242,12/07/2017,1348282,500,Legal & Professional Services,
North West Leicestershire District Council,31UH,Finance,Exchequer Services,EXCH,Leicestershire County Council,A000950,06/07/2017,1348301,3805048,County Precept,
North West Leicestershire District Council,31UH,Finance,Financial Planning,FINPLA,"Leicester, Leicestershire & Rutland Fire Service",A028339,06/07/2017,1348302,204100,Precept,
North West Leicestershire District Council,31UH,Finance,Financial Planning,FINPLA,The Office of the Police and Crime Commissioner for Leicestershire,A007096,06/07/2017,1348303,608107.75,Precept,
North West Leicestershire District Council,31UH,Finance,Financial Planning,FINPLA,Leicestershire County Council,A000950,06/07/2017,1348304,2061713,County Precept,
North West Leicestershire District Council,31UH,Finance,Financial Planning,FINPLA,Department for Communities & Local Government,A028518,06/07/2017,1348305,2551627,Subsidy Receipts & Repayments,
North West Leicestershire District Council,31UH,Housing Repairs,HRA Housing Repairs & Maintenance,HRAHRM,BSP Consulting,A000133,06/07/2017,1348306,3642.78,Legal & Professional Services,
North West Leicestershire District Council,31UH,Information Technology,ICT Services,ICT,Premier Paper Group,A042438,12/07/2017,1348308,367.8,Consumable Materials,
North West Leicestershire District Council,31UH,Chief Exec,Chief Executive,CHEX,CBRE Ltd,A041437,12/07/2017,1348310,3750,Consultants Fees,
North West Leicestershire District Council,31UH,Street Management,Environment Transport,ENOT,Certas Energy Uk Ltd,A043448,12/07/2017,1348312,431.6,Fuel,
North West Leicestershire District Council,31UH,Street Management,Environment Transport,ENOT,Certas Energy Uk Ltd,A043448,12/07/2017,1348313,16071.29,Fuel,
North West Leicestershire District Council,31UH,Street Management,Environment Transport,ENOT,Axle Weight Technology Ltd,A032268,12/07/2017,1348324,2900,Operational Equipment,
North West Leicestershire District Council,31UH,Housing,HRA Performance & Business Support,HRAPBS,Geoff Smith Associates Ltd,A041931,12/07/2017,1348330,641.74,Computing,
North West Leicestershire District Council,31UH,Housing,HRA Housing Management,HRAHM,Leicestershire County Council,A000956,12/07/2017,1348332,1345.96,Place Based Envirnmental Improvements,
North West Leicestershire District Council,31UH,Housing,HRA Housing Management,HRAHM,Leicestershire County Council,A000956,12/07/2017,1348333,1381.44,Place Based Envirnmental Improvements,
North West Leicestershire District Council,31UH,Leisure Centres,Hermitage Leisure Centre,HLC,Technogym Uk Limited,A001642,19/07/2017,1348335,704.58,Operational Equipment,
North West Leicestershire District Council,31UH,Information Technology,ICT Services,ICT,Nettitude Limited,A043672,12/07/2017,1348340,1157,Legal & Professional Services,
North West Leicestershire District Council,31UH,Finance,Exchequer Services,EXCH,Comensura Limited,A036958,12/07/2017,1348341,36028.05,Agency Staff,
North West Leicestershire District Council,31UH,Information Technology,ICT Services,ICT,ACS Systems (UK) Ltd T/a ACS Office Solutions,A043447,12/07/2017,1348343,659.5,Admin Equipment - Purchased & Recharged,
North West Leicestershire District Council,31UH,Property Services,Property Commercial Lettings,PROPCL,Purchase Power,A008204,12/07/2017,1348345,2078.89,Postages,
North West Leicestershire District Council,31UH,Leisure & Culture,Leisure & Cult Mangt,LCM,Doorstep Sport Trading Ltd,A044168,12/07/2017,1348350,300,Street games,
North West Leicestershire District Council,31UH,Housing,HRA Housing Management,HRAHM,Paul Underwood,A044166,12/07/2017,1348354,1000,Plumbing & Heating,
North West Leicestershire District Council,31UH,Street Management,Environment Parks,ENOP,Plantscape Ltd,A033650,12/07/2017,1348356,3412,External Materials,
North West Leicestershire District Council,31UH,Planning & Development,Environment - Development Control,EDC,Hinckley & Bosworth Borough Council,A000770,12/07/2017,1348360,500,Training Expenses,
North West Leicestershire District Council,31UH,Housing Repairs,HRA Housing Repairs & Maintenance,HRAHRM,County Safety Services Ltd  t/a CSS Worksafe,A044007,12/07/2017,1348361,2015.54,Operational Equipment,
North West Leicestershire District Council,31UH,Street Management,Environment Parks,ENOP,Regarde Security Ltd,A013049,12/07/2017,1348362,441.2,Building Security,
North West Leicestershire District Council,31UH,Environmental Health,Environmental Health & Licensing,EEHL,Eville And Jones Limited,A033670,12/07/2017,1348370,844.2,Vet Inspection,
North West Leicestershire District Council,31UH,Leisure Centres,Hermitage Leisure Centre,HLC,Jordan Leisure Systems Ltd,A044104,12/07/2017,1348372,2891.28,Operational Equipment,
North West Leicestershire District Council,31UH,Leisure Centres,Hermitage Leisure Centre,HLC,J P Lennard Ltd,A000969,12/07/2017,1348376,328.3,Operational Equipment,
North West Leicestershire District Council,31UH,Leisure Centres,Hood Park Leisure Centre,HPLC,J P Lennard Ltd,A000969,12/07/2017,1348381,727.47,Equipment For Hire,
North West Leicestershire District Council,31UH,Communications,Corporate - Customer Services,CS,Neopost Limited,A000079,12/07/2017,1348389,3000,Postages,
North West Leicestershire District Council,31UH,Information Technology,ICT Services,ICT,Virgin Media Business,A035373,12/07/2017,1348402,313.53,Computing,
North West Leicestershire District Council,31UH,Information Technology,ICT Services,ICT,Virgin Media Business,A008908,12/07/2017,1348403,2980.32,Admin Equipment - Maintenance,
North West Leicestershire District Council,31UH,Leisure Centres,Hood Park Bar and Catering,HPBC,Snackline Direct Ltd,A042489,12/07/2017,1348404,717.69,Vending Machine Provisions,
North West Leicestershire District Council,31UH,Housing Repairs,HRA Housing Repairs & Maintenance,HRAHRM,H20 Utilities Ltd,A043865,12/07/2017,1348412,675,Associated Drainage Services,
North West Leicestershire District Council,31UH,Housing Repairs,HRA Housing Repairs & Maintenance,HRAHRM,Lovell Partnerships Ltd,A039973,12/07/2017,1348413,916.55,Decent Homes,
North West Leicestershire District Council,31UH,Housing Repairs,HRA Housing Repairs & Maintenance,HRAHRM,Lovell Partnerships Ltd,A039973,12/07/2017,1348414,916.55,Decent Homes,
North West Leicestershire District Council,31UH,Housing Repairs,HRA Housing Repairs & Maintenance,HRAHRM,Lovell Partnerships Ltd,A039973,12/07/2017,1348415,916.55,Decent Homes,
North West Leicestershire District Council,31UH,Housing Repairs,HRA Housing Repairs & Maintenance,HRAHRM,Lovell Partnerships Ltd,A039973,12/07/2017,1348416,916.55,Decent Homes,
North West Leicestershire District Council,31UH,Housing Repairs,HRA Housing Repairs & Maintenance,HRAHRM,Lovell Partnerships Ltd,A039973,12/07/2017,1348417,1216.71,Decent Homes,
North West Leicestershire District Council,31UH,Housing Repairs,HRA Housing Repairs & Maintenance,HRAHRM,Lovell Partnerships Ltd,A039973,12/07/2017,1348418,916.55,Decent Homes,
North West Leicestershire District Council,31UH,Housing Repairs,HRA Housing Repairs & Maintenance,HRAHRM,Lovell Partnerships Ltd,A039973,12/07/2017,1348419,5237.42,Decent Homes,
North West Leicestershire District Council,31UH,Housing Repairs,HRA Housing Repairs & Maintenance,HRAHRM,Lovell Partnerships Ltd,A039973,12/07/2017,1348420,4301.53,Decent Homes,
North West Leicestershire District Council,31UH,Housing Repairs,HRA Housing Repairs & Maintenance,HRAHRM,Lovell Partnerships Ltd,A039973,12/07/2017,1348421,5237.42,Decent Homes,
North West Leicestershire District Council,31UH,Housing Repairs,HRA Housing Repairs & Maintenance,HRAHRM,Lovell Partnerships Ltd,A039973,12/07/2017,1348422,563.75,Decent Homes,
North West Leicestershire District Council,31UH,Housing Repairs,HRA Housing Repairs & Maintenance,HRAHRM,H20 Utilities Ltd,A043865,12/07/2017,1348423,1485,Associated Drainage Services,
North West Leicestershire District Council,31UH,Housing Repairs,HRA Housing Repairs & Maintenance,HRAHRM,H20 Utilities Ltd,A043865,12/07/2017,1348424,325,Associated Drainage Services,
North West Leicestershire District Council,31UH,Leisure Centres,Hood Park Leisure Centre,HPLC,Boc Limited,A000193,12/07/2017,1348425,428.5,Service Contracts,
North West Leicestershire District Council,31UH,Housing Repairs,HRA Housing Repairs & Maintenance,HRAHRM,Ward Recycling,A035471,12/07/2017,1348426,251.55,Tipping Charges,
North West Leicestershire District Council,31UH,Housing,HRA Performance & Business Support,HRAPBS,Housemark Ltd,A033843,12/07/2017,1348430,7173.56,Subscriptions,
North West Leicestershire District Council,31UH,Street Management,Environment Transport,ENOT,Reflec Signs & Graphics Ltd,A025348,12/07/2017,1348434,291,Repairs - Parts,
North West Leicestershire District Council,31UH,Street Management,Environment Transport,ENOT,Terberg Matec UK Limited,A001647,12/07/2017,1348435,319.48,Non Scheduled Maintenance - Parts,
North West Leicestershire District Council,31UH,Property Services,Property Commercial Lettings,PROPCL,ESPO,A000958,19/07/2017,1348439,587.86,Operational Equipment,
North West Leicestershire District Council,31UH,Street Management,Environment Transport,ENOT,S & B Tyres Limited,A034071,12/07/2017,1348440,330,Transport Costs - Tyres,
North West Leicestershire District Council,31UH,Housing Repairs,HRA Housing Repairs & Maintenance,HRAHRM,Hays Human Resources,A024378,12/07/2017,1348441,1526.4,Agency Staff,
North West Leicestershire District Council,31UH,Housing Repairs,HRA Housing Repairs & Maintenance,HRAHRM,Hays Human Resources,A024378,12/07/2017,1348442,1367.4,Agency Staff,
North West Leicestershire District Council,31UH,Housing Repairs,HRA Housing Repairs & Maintenance,HRAHRM,Hays Human Resources,A024378,12/07/2017,1348443,985.8,Agency Staff,
North West Leicestershire District Council,31UH,Housing Repairs,HRA Housing Repairs & Maintenance,HRAHRM,Hays Human Resources,A024378,12/07/2017,1348444,1256.1,Agency Staff,
North West Leicestershire District Council,31UH,Housing Repairs,HRA Housing Repairs & Maintenance,HRAHRM,Hays Human Resources,A024378,12/07/2017,1348445,1431,Agency Staff,
North West Leicestershire District Council,31UH,Housing Repairs,HRA Housing Repairs & Maintenance,HRAHRM,Hays Human Resources,A024378,12/07/2017,1348446,1367.4,Agency Staff,
North West Leicestershire District Council,31UH,Housing Repairs,HRA Housing Repairs & Maintenance,HRAHRM,Hays Human Resources,A024378,12/07/2017,1348447,1399.2,Agency Staff,
North West Leicestershire District Council,31UH,Housing Repairs,HRA Housing Repairs & Maintenance,HRAHRM,Hays Human Resources,A024378,12/07/2017,1348448,1367.4,Agency Staff,
North West Leicestershire District Council,31UH,Housing Repairs,HRA Housing Repairs & Maintenance,HRAHRM,Emperor Scaffolding Limited,A038405,12/07/2017,1348457,300,Hire Of Operational Equipment,
North West Leicestershire District Council,31UH,Housing,HRA Performance & Business Support,HRAPBS,Willesley Tenants and Residents Association,A007855,12/07/2017,1348460,600,Grants,
North West Leicestershire District Council,31UH,Housing,HRA Housing Management,HRAHM,Redacted-personal data,A044171,12/07/2017,1348463,1000,Under Occupancy Incentives,
North West Leicestershire District Council,31UH,Property Services,Property Facilities Management,PROPFM,British Telecommunications Plc,A000233,12/07/2017,1348475,583.66,Telephones,
North West Leicestershire District Council,31UH,Property Services,Property Facilities Management,PROPFM,Regarde Security Ltd,A013049,12/07/2017,1348477,321,Building Security,
North West Leicestershire District Council,31UH,Street Management,Environment Transport,ENOT,Ford & Slater Group Ltd,A000625,12/07/2017,1348531,308,Batteries,
North West Leicestershire District Council,31UH,Street Management,Environment Transport,ENOT,Terberg Matec UK Limited,A001647,12/07/2017,1348533,703.77,Repairs - Parts,
North West Leicestershire District Council,31UH,Street Management,Environment Transport,ENOT,Shepshed Auto Spares Ltd,A043917,12/07/2017,1348534,321.26,Repairs - Parts,
North West Leicestershire District Council,31UH,Street Management,Environment Transport,ENOT,Partic Motor Spares Ltd,A042528,12/07/2017,1348540,410,Repairs - Parts,
North West Leicestershire District Council,31UH,Planning & Development,Environment Community Planning,ECP,Age UK,A020444,19/07/2017,1348541,5390,Grants,
North West Leicestershire District Council,31UH,Street Management,Environment Transport,ENOT,Dennis Eagle Limited,A000522,12/07/2017,1348547,290.27,Repairs - Parts,
North West Leicestershire District Council,31UH,Street Management,Environment Transport,ENOT,Dennis Eagle Limited,A000522,12/07/2017,1348550,681.08,Repairs - Parts,
North West Leicestershire District Council,31UH,Street Management,Environment Transport,ENOT,Dennis Eagle Limited,A000522,12/07/2017,1348551,1704.3,Repairs - Parts,
North West Leicestershire District Council,31UH,Corporate Director,Human Resources,HR,Wider Plan Ltd,A043948,12/07/2017,1348557,5301,Staff Benefit Scheme,
North West Leicestershire District Council,31UH,Street Management,Environment Transport,ENOT,Euro Municipal Ltd,A043137,12/07/2017,1348558,860,Hire Of Transport,
North West Leicestershire District Council,31UH,Street Management,Environment Transport,ENOT,Watling JCB Ltd,A032114,12/07/2017,1348560,790,Scheduled Servicing - Parts,
North West Leicestershire District Council,31UH,Housing Repairs,HRA Housing Repairs & Maintenance,HRAHRM,Ward Recycling,A035471,12/07/2017,1348561,613.84,Tipping Charges,
North West Leicestershire District Council,31UH,Housing Repairs,HRA Housing Repairs & Maintenance,HRAHRM,Sure Maintenance Ltd,A040460,12/07/2017,1348565,9022.08,Plumbing & Heating,
North West Leicestershire District Council,31UH,Housing Repairs,HRA Housing Repairs & Maintenance,HRAHRM,Sure Maintenance Ltd,A040460,12/07/2017,1348566,3330,Plumbing & Heating,
North West Leicestershire District Council,31UH,Street Management,Environment Transport,ENOT,Taylor Engineering & Fabrications Ltd,A036178,12/07/2017,1348568,408.71,Repairs - Parts,
North West Leicestershire District Council,31UH,Housing,HRA Performance & Business Support,HRAPBS,Michael Page International Recruitment Ltd,A041893,19/07/2017,1348571,11328.8,Agency Staff,
North West Leicestershire District Council,31UH,Street Management,Environment - Street Scene,ESS,EPT SERVICES,A039764,19/07/2017,1348572,400,Publicity & Promotion,
North West Leicestershire District Council,31UH,Street Management,Environment Waste Management,ENOWM,Leicestershire County Council,A027423,12/07/2017,1348573,7650,Hire Of Operational Equipment,
North West Leicestershire District Council,31UH,Environmental Health,Environmental Health & Licensing,EEHL,Institute of Licensing Limited,A035655,19/07/2017,1348575,450,Training Expenses,
North West Leicestershire District Council,31UH,Street Management,Environment Waste Management,ENOWM,J F Lloyd & Sons,A000991,12/07/2017,1348582,260,Hire Of Operational Equipment,
North West Leicestershire District Council,31UH,Leisure Centres,Hermitage Leisure Centre,HLC,Designs Alike Ltd,A042630,12/07/2017,1348584,586,Protective Clothing,
North West Leicestershire District Council,31UH,Leisure Centres,Hermitage Leisure Centre,HLC,Hugglescote Community Centre,A028420,12/07/2017,1348585,257,Room Hire,
North West Leicestershire District Council,31UH,Leisure Centres,Hermitage Leisure Centre,HLC,Hugglescote Community Centre,A028420,12/07/2017,1348587,294,Room Hire,
North West Leicestershire District Council,31UH,Leisure Centres,Hermitage Leisure Centre,HLC,Measham Leisure Centre,A027454,12/07/2017,1348594,2454.09,Measham LC Lifestyle DD,
North West Leicestershire District Council,31UH,Leisure Centres,Hermitage Leisure Centre,HLC,ESPO,A000958,12/07/2017,1348599,254.57,Operational Equipment,
North West Leicestershire District Council,31UH,Finance,Financial Planning,FINPLA,Zurich Municipal,A001835,12/07/2017,1348602,-319.82,Other Premises Insurance,
North West Leicestershire District Council,31UH,Finance,Financial Planning,FINPLA,Zurich Municipal,A001835,12/07/2017,1348603,-331.17,Other Premises Insurance,
North West Leicestershire District Council,31UH,Finance,Financial Planning,FINPLA,Zurich Municipal,A001835,12/07/2017,1348604,5308.08,Other Premises Insurance,
North West Leicestershire District Council,31UH,Housing,HRA Housing Management,HRAHM,Redacted-personal data,A044000,19/07/2017,1348608,605.32,Under Occupancy Incentives,
North West Leicestershire District Council,31UH,Street Management,Environment Transport,ENOT,Mertrux Ltd,A035291,19/07/2017,1348612,761.27,Repairs - Parts,
North West Leicestershire District Council,31UH,Leisure Centres,Hermitage Leisure Centre,HLC,Greasley Electronics Ltd,A040963,19/07/2017,1348615,753,Operational Equipment,
North West Leicestershire District Council,31UH,Chief Exec,Chief Executive,CHEX,Leicester City Council,A000935,19/07/2017,1348616,8000,Contributions,
North West Leicestershire District Council,31UH,Leisure Centres,Hermitage Bar & Catering,HLBC,Slush Puppie Ltd,A027751,19/07/2017,1348624,314.59,Catering Provisions,
North West Leicestershire District Council,31UH,Leisure Centres,Hermitage Bar & Catering,HLBC,Snackline Direct Ltd,A042489,19/07/2017,1348627,443.12,Catering Provisions,
North West Leicestershire District Council,31UH,Leisure Centres,Hermitage Leisure Centre,HLC,Jordan Leisure Systems Ltd,A044104,19/07/2017,1348634,311.28,Operational Equipment,
North West Leicestershire District Council,31UH,Neighbourhoods & Communities,N & C Neighbourhoods,NACN,Measham Community & Recreation Centre,A041520,19/07/2017,1348638,10000,Community Initiatives,
North West Leicestershire District Council,31UH,Chief Exec,Chief Executive,CHEX,Koda Consulting,A043827,19/07/2017,1348639,2516,Consultants Fees,
North West Leicestershire District Council,31UH,Housing,HRA Performance & Business Support,HRAPBS,Marsh Limited,A042169,26/07/2017,1348640,11569.48,Insurance - Tenants Contributions,
North West Leicestershire District Council,31UH,Property Services,Property Commercial Lettings,PROPCL,RICS,A033386,19/07/2017,1348641,695,Subscriptions,
North West Leicestershire District Council,31UH,Street Management,Environment Waste Management,ENOWM,Wybone Limited,A009174,19/07/2017,1348647,475,Operational Equipment,
North West Leicestershire District Council,31UH,Property Services,Property Commercial Lettings,PROPCL,Valuation Office Agency,A034291,19/07/2017,1348650,1912,Legal & Professional Services,
North West Leicestershire District Council,31UH,Housing Repairs,HRA Housing Repairs & Maintenance,HRAHRM,Subject 11 Survey Ltd,A043683,19/07/2017,1348651,5087.25,Legal & Professional Services,
North West Leicestershire District Council,31UH,Legal & Democratic,Legal Services,LDLS,Hankinson Duckett Associates Ltd,A044175,19/07/2017,1348654,15702.79,External Legal Fees & Advice,
North West Leicestershire District Council,31UH,Finance,Exchequer Services,EXCH,Comensura Limited,A036958,19/07/2017,1348657,32123.67,Agency Staff,
North West Leicestershire District Council,31UH,Leisure Centres,Hermitage Leisure Centre,HLC,Admiral Cleaning Supplies Ltd,A040930,19/07/2017,1348659,1193.16,Water Treatment,
North West Leicestershire District Council,31UH,Leisure Centres,Hood Park Leisure Centre,HPLC,Admiral Cleaning Supplies Ltd,A040930,26/07/2017,1348660,777,Water Treatment,
North West Leicestershire District Council,31UH,Corporate Director,Human Resources,HR,Kalu Training and Consultancy,A043918,19/07/2017,1348661,850,Corporate Training,
North West Leicestershire District Council,31UH,Leisure Centres,Hermitage Leisure Centre,HLC,Phonographic Performances Ltd,A001300,19/07/2017,1348662,861.09,Licences,
North West Leicestershire District Council,31UH,Chief Exec,Chief Executive,CHEX,Sable Leigh Consultancy Ltd T/A SLC Rail,A042727,19/07/2017,1348664,1440.7,External Legal Fees & Advice,
North West Leicestershire District Council,31UH,Housing Repairs,HRA Housing Repairs & Maintenance,HRAHRM,Severn Trent Water,A043977,19/07/2017,1348665,1449.85,Utlilities-connection services,
North West Leicestershire District Council,31UH,Housing,HRA Housing Management,HRAHM,Water Plus Limited,A044043,19/07/2017,1348666,1510.3,Water Charges (Metered),
North West Leicestershire District Council,31UH,Leisure Centres,Hermitage Leisure Centre,HLC,Siemens Energy Services Ltd,A024546,19/07/2017,1348668,394.33,Service Contracts,
North West Leicestershire District Council,31UH,Leisure Centres,Hermitage Leisure Centre,HLC,Dalesauna Limited,A000454,19/07/2017,1348671,804.14,General Repairs,
North West Leicestershire District Council,31UH,Property Services,Property Commercial Lettings,PROPCL,John Merison BMC Ltd,A001092,19/07/2017,1348678,376.64,General Repairs,
North West Leicestershire District Council,31UH,Housing Strategy,Community - Housing Strategy,HS,Civica Ltd,A021357,26/07/2017,1348681,281.16,Computing,
North West Leicestershire District Council,31UH,Information Technology,ICT Services,ICT,Jacarta Ltd,A035637,19/07/2017,1348682,350,Administrative Equipment,
North West Leicestershire District Council,31UH,Street Management,Environment Transport,ENOT,WasteParts UK Limited,A036236,19/07/2017,1348684,346.42,Non Scheduled Maintenance - Parts,
North West Leicestershire District Council,31UH,Street Management,Environment Transport,ENOT,Taylor Engineering & Fabrications Ltd,A036178,19/07/2017,1348691,656.41,Repairs - Parts,
North West Leicestershire District Council,31UH,Street Management,Environment Transport,ENOT,Post Office Limited,A008559,19/07/2017,1348692,1610,Licences - Road Fund Licence,
North West Leicestershire District Council,31UH,Street Management,Environment Transport,ENOT,Dennis Eagle Limited,A000522,19/07/2017,1348698,635.97,Repairs - Parts,
North West Leicestershire District Council,31UH,Legal & Democratic,Legal Services,LDLS,Venn Group Limited,A028530,19/07/2017,1348702,1023.75,Agency Staff,
North West Leicestershire District Council,31UH,Property Services,Property Commercial Lettings,PROPCL,Geze Uk Limited,A023130,19/07/2017,1348713,1174,General Repairs,
North West Leicestershire District Council,31UH,Property Services,Property Facilities Management,PROPFM,Geze Uk Limited,A023130,19/07/2017,1348714,1424.85,General Repairs,
North West Leicestershire District Council,31UH,Property Services,Property Facilities Management,PROPFM,LTT Vending Limited,A037981,19/07/2017,1348715,320.46,Catering Provisions,
North West Leicestershire District Council,31UH,Leisure & Culture,Sport & Physical Activity,SPA,Helter Skelter Arts Ltd,A043059,19/07/2017,1348719,900,Event Expenditure,
North West Leicestershire District Council,31UH,Leisure Centres,Hermitage Leisure Centre,HLC,Fitness Industry Association Ltd,A031753,19/07/2017,1348720,306,Training Expenses,
North West Leicestershire District Council,31UH,Leisure Centres,Hood Park Leisure Centre,HPLC,ADT Fire And Security,A000021,19/07/2017,1348738,840.58,Service Contracts,
North West Leicestershire District Council,31UH,Leisure Centres,Hood Park Leisure Centre,HPLC,J P Lennard Ltd,A000969,19/07/2017,1348782,357.45,Operational Equipment,
North West Leicestershire District Council,31UH,Finance,Exchequer Services,EXCH,Ezee Lettings,A037545,19/07/2017,1348803,303.3,Rent Deposit Scheme,
North West Leicestershire District Council,31UH,Corporate Director,Human Resources,HR,Guardian News & Media Ltd,A041655,19/07/2017,1348804,3000,Employee Advertising,
North West Leicestershire District Council,31UH,Housing Repairs,HRA Housing Repairs & Maintenance,HRAHRM,Cresswell Property Surveys,A022373,19/07/2017,1348805,1620,Legal & Professional Services,
North West Leicestershire District Council,31UH,Housing Repairs,HRA Housing Repairs & Maintenance,HRAHRM,Cresswell Property Surveys,A022373,19/07/2017,1348806,1620,Legal & Professional Services,
North West Leicestershire District Council,31UH,Housing Repairs,HRA Housing Repairs & Maintenance,HRAHRM,G Purchase Construction Ltd,A032830,19/07/2017,1348808,23924.17,Housing repairs,
North West Leicestershire District Council,31UH,Information Technology,ICT Services,ICT,Virgin Media Business,A008908,19/07/2017,1348810,711.49,Telephone Charge / Rental,
North West Leicestershire District Council,31UH,Housing Repairs,HRA Housing Repairs & Maintenance,HRAHRM,Ward Recycling,A035471,19/07/2017,1348813,529.98,Tipping Charges,
North West Leicestershire District Council,31UH,Environmental Health,Environmental Health & Licensing,EEHL,College Garth Boarding Kennels,A000385,19/07/2017,1348823,1927,Stray Dog Service,
North West Leicestershire District Council,31UH,Property Services,Property Facilities Management,PROPFM,Rentokil Initial UK Limited,A037013,19/07/2017,1348825,1411.77,General Repairs,
North West Leicestershire District Council,31UH,Housing,HRA Older Persons Service,HRAOPS,Tunstall Healthcare (UK) Limited,A001701,26/07/2017,1348826,1432.62,Alarm System Telephones,
North West Leicestershire District Council,31UH,Legal & Democratic,Business Development Team,BDT,Coalville and District Constitutional Club Ltd,A043540,19/07/2017,1348831,11135.74,Grants,
North West Leicestershire District Council,31UH,Street Management,Environment Transport,ENOT,Westbury Industrial Supplies Limited,A009933,19/07/2017,1348840,704.32,Protective Clothing,
North West Leicestershire District Council,31UH,Information Technology,ICT Services,ICT,Phoenix Software Limited,A001298,19/07/2017,1348841,1625,Administrative Equipment,
North West Leicestershire District Council,31UH,Leisure & Culture,Sport & Physical Activity,SPA,Newitt & Co Limited,A002594,19/07/2017,1348843,258.77,Leisure Centre Equipment,
North West Leicestershire District Council,31UH,Street Management,Environment Transport,ENOT,FAROL Limited,A041905,19/07/2017,1348846,334.38,Scheduled Servicing - Parts,
North West Leicestershire District Council,31UH,Street Management,Environment Transport,ENOT,Platts Harris Ltd,A038987,19/07/2017,1348854,340.58,Repairs - Parts,
North West Leicestershire District Council,31UH,Property Services,Property Facilities Management,PROPFM,Barlow Blinds,A040305,19/07/2017,1348860,265,General Repairs,
North West Leicestershire District Council,31UH,Property Services,Property Facilities Management,PROPFM,Barlow Blinds,A040305,19/07/2017,1348861,290,General Repairs,
North West Leicestershire District Council,31UH,Legal & Democratic,Legal Services,LDLS,Thomson Reuters (Professional) UK Limited,A037595,19/07/2017,1348862,1072.34,Computing,
North West Leicestershire District Council,31UH,Information Technology,ICT Services,ICT,Firmstep,A030931,26/07/2017,1348872,1156.25,Contract Payments (Other) Ext,
North West Leicestershire District Council,31UH,Information Technology,ICT Services,ICT,Freedom Communications (UK) Ltd,A032826,19/07/2017,1348873,1544.32,Admin Equipment - Maintenance,
North West Leicestershire District Council,31UH,Housing Repairs,HRA Housing Repairs & Maintenance,HRAHRM,Sure Maintenance Ltd,A040460,19/07/2017,1348874,750,Plumbing & Heating,
North West Leicestershire District Council,31UH,Planning & Development,Environment Community Planning,ECP,Age UK,A020444,19/07/2017,1348876,5390,Grants,
North West Leicestershire District Council,31UH,Housing Repairs,HRA Housing Repairs & Maintenance,HRAHRM,Woodhead Construction,A000133,20/07/2017,1348880,89766.03,Housing Development Work- Construction,
North West Leicestershire District Council,31UH,Housing,HRA Performance & Business Support,HRAPBS,Voca Limited,A031344,20/07/2017,1348881,420,Alarm System Telephones,
North West Leicestershire District Council,31UH,Corporate Director,Human Resources,HR,The Disclosure & Barring Service,A027625,20/07/2017,1348882,586,Criminal Records Bureau,
North West Leicestershire District Council,31UH,Finance,Exchequer Services,EXCH,ESPO,A000958,20/07/2017,1348883,3873.58,Gas,
North West Leicestershire District Council,31UH,Finance,Exchequer Services,EXCH,Co-Operative Bank Plc,A000357,20/07/2017,1348884,421.24,General Bank Charges,
North West Leicestershire District Council,31UH,Finance,Exchequer Services,EXCH,ESPO,A000958,20/07/2017,1348887,13610.51,Gas,
North West Leicestershire District Council,31UH,Information Technology,ICT Services,ICT,Foursys Ltd,A029908,26/07/2017,1348889,9600,Admin Equipment - Maintenance,
North West Leicestershire District Council,31UH,Housing,HRA Performance & Business Support,HRAPBS,Hinckley & Bosworth Borough Council,A042269,26/07/2017,1348890,250,Computing,
North West Leicestershire District Council,31UH,Planning & Development,Environment Community Planning,ECP,Baydale Control Systems Ltd,A042565,26/07/2017,1348897,1494.5,Operational Equipment,
North West Leicestershire District Council,31UH,Leisure Centres,Hermitage Leisure Centre,HLC,Midlands Cooling Services Ltd,A043433,26/07/2017,1348898,540,Service Contracts,
North West Leicestershire District Council,31UH,Leisure Centres,Hood Park Bar and Catering,HPBC,Midlands Cooling Services Ltd,A043433,26/07/2017,1348899,630,Service Contracts,
North West Leicestershire District Council,31UH,Street Management,Environment Transport,ENOT,Amber Valley Developments Ltd,A040933,26/07/2017,1348903,484,Operational Equipment,
North West Leicestershire District Council,31UH,Housing Repairs,HRA Housing Repairs & Maintenance,HRAHRM,Michael Dyson Associates Ltd,A028431,26/07/2017,1348905,2016,Consultants Fees,
North West Leicestershire District Council,31UH,Housing Repairs,HRA Housing Repairs & Maintenance,HRAHRM,Sure Maintenance Ltd,A040460,26/07/2017,1348906,9966.96,Plumbing & Heating,
North West Leicestershire District Council,31UH,Housing Repairs,HRA Housing Repairs & Maintenance,HRAHRM,Sure Maintenance Ltd,A040460,26/07/2017,1348907,2670,Plumbing & Heating,
North West Leicestershire District Council,31UH,Housing Repairs,HRA Housing Repairs & Maintenance,HRAHRM,Kier Services Maintenance East Ltd,A039980,26/07/2017,1348909,19006.72,Decent Homes,
North West Leicestershire District Council,31UH,Finance,Exchequer Services,EXCH,Comensura Limited,A036958,26/07/2017,1348911,24893.53,Agency Staff,
North West Leicestershire District Council,31UH,Housing Repairs,HRA Housing Repairs & Maintenance,HRAHRM,PPG Architectural Coatings Ltd,A000876,26/07/2017,1348915,3238.8,Internal Decorations,
North West Leicestershire District Council,31UH,Leisure Centres,Hermitage Leisure Centre,HLC,Leicestershire County Council Central Print,A037238,26/07/2017,1348923,432,Publicity & Promotion,
North West Leicestershire District Council,31UH,Housing,HRA Performance & Business Support,HRAPBS,Michael Page International Recruitment Ltd,A041893,26/07/2017,1348925,4035.5,Agency Staff,
North West Leicestershire District Council,31UH,Housing,HRA Performance & Business Support,HRAPBS,Michael Page International Recruitment Ltd,A041893,26/07/2017,1348926,2017.75,Agency Staff,
North West Leicestershire District Council,31UH,Street Management,Environment Transport,ENOT,J F Lloyd & Sons,A000991,26/07/2017,1348930,350,Hire Of Operational Equipment,
North West Leicestershire District Council,31UH,Property Services,Property Facilities Management,PROPFM,T Denman & Sons (Melton Mowbray) Ltd,A030887,26/07/2017,1348937,540.4,Contract Payments (Other) Ext,
North West Leicestershire District Council,31UH,Leisure Centres,Hermitage Leisure Centre,HLC,SES Technical Ltd,A044190,26/07/2017,1348940,1100,Hospitality,
North West Leicestershire District Council,31UH,Leisure Centres,Hermitage Leisure Centre,HLC,CSS Pools & Leisure,A034993,26/07/2017,1348942,301,General Repairs,
North West Leicestershire District Council,31UH,Leisure Centres,Hermitage Bar & Catering,HLBC,The Muffin Man,A001162,26/07/2017,1348946,259.16,Catering Provisions,
North West Leicestershire District Council,31UH,Leisure Centres,Hermitage Bar & Catering,HLBC,LWC - Birmingham,A039915,26/07/2017,1348951,604.25,Bar Provisions,
North West Leicestershire District Council,31UH,Leisure Centres,Hood Park Leisure Centre,HPLC,Leicestershire County Council,A028430,26/07/2017,1348954,2886.29,Repairs - Market Stalls,
North West Leicestershire District Council,31UH,Leisure Centres,Castle Donington Community College,CDCC,Elliott Group Limited,A005413,26/07/2017,1348955,505.72,Secure Storage,
North West Leicestershire District Council,31UH,Leisure Centres,Hermitage Leisure Centre,HLC,The Performing Right Society,A001293,26/07/2017,1348957,4307.32,Royalties,
North West Leicestershire District Council,31UH,Leisure Centres,Hood Park Leisure Centre,HPLC,The Performing Right Society,A001293,26/07/2017,1348958,4013.25,Royalties,
North West Leicestershire District Council,31UH,Leisure Centres,Hood Park Leisure Centre,HPLC,Institute of Swimming,A041502,26/07/2017,1348960,3470,Training Expenses,
North West Leicestershire District Council,31UH,Street Management,Environment Transport,ENOT,Certas Energy Uk Ltd,A043448,26/07/2017,1348964,16745.17,Fuel,
North West Leicestershire District Council,31UH,Street Management,Environment Transport,ENOT,Certas Energy Uk Ltd,A043448,26/07/2017,1348965,457.01,Fuel,
North West Leicestershire District Council,31UH,Housing,HRA Older Persons Service,HRAOPS,Tunstall Healthcare (UK) Limited,A001701,26/07/2017,1348966,552,Alarm System Telephones,
North West Leicestershire District Council,31UH,Leisure Centres,Hermitage Leisure Centre,HLC,Taylor Bloxham Ltd,A037241,26/07/2017,1348970,280,Swimming Badges,
North West Leicestershire District Council,31UH,Housing,HRA Housing Management,HRAHM,Redacted-personal data,A044201,26/07/2017,1348978,280,Grants,
North West Leicestershire District Council,31UH,Housing,HRA Performance & Business Support,HRAPBS,Redacted-personal data,A042888,26/07/2017,1348985,400,Compensation,
North West Leicestershire District Council,31UH,Housing,HRA Older Persons Service,HRAOPS,Tunstall Healthcare (UK) Limited,A001701,26/07/2017,1348986,29818.83,Alarm Equipment Repairs,
North West Leicestershire District Council,31UH,Communications,Corporate - Communications,CP,Neopost Limited,A000079,26/07/2017,1348987,4500,Postages,
North West Leicestershire District Council,31UH,Housing Repairs,HRA Housing Repairs & Maintenance,HRAHRM,Kier Services Maintenance East Ltd,A039980,26/07/2017,1348988,31049.82,Decent Homes,
North West Leicestershire District Council,31UH,Housing Strategy,Community - Housing Strategy,HS,EMH Homes,A039302,26/07/2017,1348989,9355,Grants,
North West Leicestershire District Council,31UH,Housing Strategy,Community - Housing Strategy,HS,EMH Homes,A039302,26/07/2017,1348990,9355,Grants,
North West Leicestershire District Council,31UH,Corporate Director,Human Resources,HR,Health Management Ltd,A038840,26/07/2017,1348991,310.2,Occupational Health Services,
North West Leicestershire District Council,31UH,Communications,Corporate - Communications,CP,Neopost Limited,A000079,26/07/2017,1348992,361.03,Operational Equipment,
North West Leicestershire District Council,31UH,Leisure Centres,Hermitage Leisure Centre,HLC,Water Plus Limited,A044043,26/07/2017,1348994,1798.76,Water Charges (Metered),
North West Leicestershire District Council,31UH,Information Technology,ICT Services,ICT,Virgin Media Business,A008908,09/08/2017,1348996,-257.78,Admin Equipment - Maintenance,
North West Leicestershire District Council,31UH,Planning & Development,Environment Community Planning,ECP,Stephenson College,A000373,26/07/2017,1348998,4500,Accident Prevention Partnership,
North West Leicestershire District Council,31UH,Housing Strategy,Community - Housing Strategy,HS,Homestart (N.W. Leics),A000780,26/07/2017,1348999,4905,Grants,
North West Leicestershire District Council,31UH,Planning & Development,Environment - Development Control,EDC,GHM Planning Limited,A034296,26/07/2017,1349000,1626.55,Agency Staff,
North West Leicestershire District Council,31UH,Planning & Development,Environment Planning Policy,EPP,Valuation Office Agency,A034291,26/07/2017,1349001,3597.4,External Legal Fees & Advice,
North West Leicestershire District Council,31UH,Planning & Development,Environment Planning Policy,EPP,Valuation Office Agency,A034291,26/07/2017,1349002,3243.8,External Legal Fees & Advice,
North West Leicestershire District Council,31UH,Street Management,Environment Parks,ENOP,Sita UK Ltd,A001108,26/07/2017,1349003,339.71,Tipping Charges,
North West Leicestershire District Council,31UH,Street Management,Environment Transport,ENOT,Spaldings (UK) Limited,A001540,26/07/2017,1349019,1245.92,Repairs - Parts,
North West Leicestershire District Council,31UH,Street Management,Environment Transport,ENOT,Triscan Systems Limited,A036521,26/07/2017,1349021,806.26,Licences,
North West Leicestershire District Council,31UH,Property Services,Property Commercial Lettings,PROPCL,Coalville Cleaning Services,A003037,26/07/2017,1349030,558.06,Contract Cleaning,
North West Leicestershire District Council,31UH,Property Services,Property Commercial Lettings,PROPCL,Coalville Cleaning Services,A003037,26/07/2017,1349031,289.95,Contract Cleaning,
North West Leicestershire District Council,31UH,Street Management,Environment Waste Management,ENOWM,ESE World Limited,A001253,26/07/2017,1349033,1987.5,General Materials,
North West Leicestershire District Council,31UH,Housing,HRA Housing Management,HRAHM,Redacted-personal data,A044206,26/07/2017,1349034,280,Grants,
North West Leicestershire District Council,31UH,Information Technology,ICT Services,ICT,ACS Systems (UK) Ltd T/a ACS Office Solutions,A043447,16/08/2017,1349036,261,Administrative Equipment,
North West Leicestershire District Council,31UH,Information Technology,ICT Services,ICT,ACS Systems (UK) Ltd T/a ACS Office Solutions,A043447,16/08/2017,1349037,-261,Administrative Equipment,
North West Leicestershire District Council,31UH,Housing Repairs,HRA Housing Repairs & Maintenance,HRAHRM,Orbis Property Protection Ltd,A028149,26/07/2017,1349115,390,Void Property Clearance Services,
North West Leicestershire District Council,31UH,Housing Repairs,HRA Housing Repairs & Maintenance,HRAHRM,Orbis Property Protection Ltd,A028149,26/07/2017,1349124,400,Void Property Clearance Services,
North West Leicestershire District Council,31UH,Street Management,Environment Transport,ENOT,DR Baling Wire Manufacturers Ltd,A032890,26/07/2017,1349126,1600,Operational Equipment,
North West Leicestershire District Council,31UH,Finance,Exchequer Services,EXCH,Capita Business Services Ltd,A002968,26/07/2017,1349127,7925,Computing,
North West Leicestershire District Council,31UH,Street Management,Environment Transport,ENOT,Selby's Garage (Woodhouse) Ltd,A044011,26/07/2017,1349128,350.37,Hire Of Operational Equipment,
North West Leicestershire District Council,31UH,Housing Repairs,HRA Housing Repairs & Maintenance,HRAHRM,Leicestershire County Council,A000950,26/07/2017,1349129,1064.8,Contract Payments (Dws) Ext,
North West Leicestershire District Council,31UH,Housing Strategy,Community - Housing Strategy,HS,Redacted-personal data,A044208,26/07/2017,1349130,303.3,Rent Deposit Scheme,
North West Leicestershire District Council,31UH,Housing Repairs,HRA Housing Repairs & Maintenance,HRAHRM,Laker BMS Ltd,A031787,26/07/2017,1349133,1665,Housing repairs,
North West Leicestershire District Council,31UH,Housing Repairs,HRA Housing Repairs & Maintenance,HRAHRM,Laker BMS Ltd,A031787,26/07/2017,1349134,4650,Housing repairs,
North West Leicestershire District Council,31UH,Housing Repairs,HRA Housing Repairs & Maintenance,HRAHRM,Laker BMS Ltd,A031787,26/07/2017,1349135,2986.13,Housing repairs,
North West Leicestershire District Council,31UH,Housing Repairs,HRA Housing Repairs & Maintenance,HRAHRM,Laker BMS Ltd,A031787,26/07/2017,1349136,438.08,Housing repairs,
North West Leicestershire District Council,31UH,Housing Repairs,HRA Housing Repairs & Maintenance,HRAHRM,Laker BMS Ltd,A031787,26/07/2017,1349137,4450,Housing repairs,
North West Leicestershire District Council,31UH,Housing Repairs,HRA Housing Repairs & Maintenance,HRAHRM,TECSERV UK LIMITED,A028261,26/07/2017,1349140,291.96,Door Entry Systems,
North West Leicestershire District Council,31UH,Finance,Exchequer Services,EXCH,Allpay.net,A035542,26/07/2017,1349143,6556.02,Paypoint and Post Office Transaction Charges,
North West Leicestershire District Council,31UH,Finance,Exchequer Services,EXCH,Capita Business Services Ltd,A002968,26/07/2017,1349144,288,Computing,
North West Leicestershire District Council,31UH,Planning & Development,Environment Community Planning,ECP,Age Concern Leics & Rutland,A041115,26/07/2017,1349145,5390,Grants,
North West Leicestershire District Council,31UH,Planning & Development,Environment Community Planning,ECP,Age Concern Leics & Rutland,A041115,26/07/2017,1349146,5390,Grants,
North West Leicestershire District Council,31UH,Planning & Development,Environment Planning Policy,EPP,Ibstock Parish Council,A000807,26/07/2017,1349147,74789,Section 106 contribution,
North West Leicestershire District Council,31UH,Finance,Financial Planning,FINPLA,Barclays Mercantile Business,A003940,26/07/2017,1349148,1500000,Policy Lending,
North West Leicestershire District Council,31UH,Housing Repairs,HRA Housing Repairs & Maintenance,HRAHRM,Redacted-personal data,A000133,26/07/2017,1349162,300,Compensation,
North West Leicestershire District Council,31UH,Finance,Financial Planning,FINPLA,Scottish Widows Investment Partnerhiip,A039247,26/07/2017,1349164,4400000,Policy Lending,
North West Leicestershire District Council,31UH,Finance,Financial Planning,FINPLA,Blackrock Cash Management,A039249,26/07/2017,1349165,4800000,Policy Lending,
North West Leicestershire District Council,31UH,Finance,Financial Planning,FINPLA,Dumfries & Galloway Council,A044211,26/07/2017,1349167,3500000,Policy Lending,
North West Leicestershire District Council,31UH,Finance,Financial Planning,FINPLA,Goldman Sachs Money Market Fund,A039248,26/07/2017,1349168,3000000,Policy Lending,
North West Leicestershire District Council,31UH,Property Services,Property Facilities Management,PROPFM,Charnwood Borough Council,A000323,26/07/2017,1349171,1920,Asset Protection,
North West Leicestershire District Council,31UH,Housing Repairs,HRA Housing Repairs & Maintenance,HRAHRM,Premier  Energy,A043143,26/07/2017,1349173,500,Legal & Professional Services,
North West Leicestershire District Council,31UH,Housing Repairs,HRA Housing Repairs & Maintenance,HRAHRM,Premier  Energy,A043143,26/07/2017,1349174,500,Legal & Professional Services,
North West Leicestershire District Council,31UH,Housing Repairs,HRA Housing Repairs & Maintenance,HRAHRM,Premier  Energy,A043143,26/07/2017,1349175,500,Legal & Professional Services,
North West Leicestershire District Council,31UH,Housing Repairs,HRA Housing Repairs & Maintenance,HRAHRM,Western Power Distribution,A038499,26/07/2017,1349181,2670.72,Utlilities-connection services,
North West Leicestershire District Council,31UH,Housing Repairs,HRA Housing Repairs & Maintenance,HRAHRM,Western Power Distribution,A038499,26/07/2017,1349182,3071.18,Utlilities-connection services,
North West Leicestershire District Council,31UH,Housing Repairs,HRA Housing Repairs & Maintenance,HRAHRM,Western Power Distribution,A038499,26/07/2017,1349183,2505.75,Utlilities-connection services,
North West Leicestershire District Council,31UH,Housing,HRA Performance & Business Support,HRAPBS,Michael Page International Recruitment Ltd,A041893,26/07/2017,1349184,2017.75,Agency Staff,
North West Leicestershire District Council,31UH,Legal & Democratic,Legal Services,LDLS,Hankinson Duckett Associates Ltd,A044175,26/07/2017,1349185,15702.79,External Legal Fees & Advice,
